bitfinex/quotes_ETHUSD_20250508
["timestamp","ask_amount","ask_price","bid_price","bid_amount"]
[1746727190572,4.88355603,2047.7,2047.5,0.765]
[1746727190801,4.93250693,2047.6,2047.5,6.575]
[1746727192107,0.04874057,2047.6,2047.5,3.29]
[1746727192270,4.88376636,2047.6,2047.5,3.29]
[1746727193691,4.88376636,2047.6,2047.3,0.765]
[1746727193896,4.88376636,2047.6,2047.5,3.285]
[1746727194098,4.88368291,2047.7,2047.5,3.285]
[1746727194265,4.88376636,2047.6,2047.5,3.285]
[1746727194716,4.88368428,2047.7,2047.5,3.285]
[1746727195207,4.88376636,2047.6,2047.5,3.285]
[1746727196005,4.93250693,2047.6,2047.5,3.285]
[1746727198301,4.88376636,2047.6,2047.5,3.285]
[1746727199673,4.93242611,2047.7,2047.5,3.285]
[1746727199909,4.88376636,2047.6,2047.5,3.285]
[1746727200798,4.88307692,2047.9,2047.6,0.7585]
[1746727201001,0.04874057,2048.0,2047.7,4.88348011]
[1746727201171,4.88245317,2048.2,2047.8,4.88318179]
[1746727201377,4.93119374,2048.2,2047.9,4.0415]
[1746727201611,4.88245317,2048.2,2048.0,3.284]
[1746727201922,0.04874057,2048.3,2048.0,3.284]
[1746727202125,4.9309449,2048.3,2048.0,3.284]
[1746727202328,4.88179908,2048.5,2048.1,4.88248934]
[1746727202630,4.88155546,2048.6,2048.2,5.69703897]
[1746727202779,4.93029603,2048.6,2048.2,0.8149]
[1746727203113,4.93029603,2048.6,2048.0,14.53827273]
[1746727203114,4.88162069,2048.5,2048.3,6.566]
[1746727203322,4.93059958,2048.4,2048.3,6.566]
[1746727203477,4.9304486,2048.5,2048.3,6.566]
[1746727204217,0.04874057,2048.5,2048.3,6.566]
[1746727204374,4.88158039,2048.6,2048.3,7.393]
[1746727204580,0.04874057,2048.7,2048.3,9.10877617]
[1746727204881,4.88228758,2048.3,2048.1,6.89641834]
[1746727205115,4.88228758,2048.3,2048.1,9.35341834]
[1746727205116,4.8823357,2048.2,2048.1,9.35341834]
[1746727205300,4.88277035,2048.1,2047.9,18.419]
[1746727205500,4.8828125,2048.0,2047.9,20.874]
[1746727205702,4.8828125,2048.0,2047.9,24.158]
[1746727205897,4.93144812,2048.1,2047.9,24.158]
[1746727206302,4.8828125,2048.0,2047.9,24.158]
[1746727207003,0.04874057,2048.2,2047.9,24.9429]
[1746727207521,4.88266447,2048.1,2047.9,24.9429]
[1746727207919,4.88254124,2048.2,2047.9,24.9429]
[1746727208121,0.04874057,2048.4,2048.0,0.8067]
[1746727208292,4.88188813,2048.4,2048.0,5.68937097]
[1746727208502,4.88220608,2048.3,2048.0,0.8067]
[1746727208700,0.04874057,2048.4,2048.0,7.35452232]
[1746727208903,4.88128367,2048.7,2048.3,5.64879322]
[1746727209221,4.88185901,2048.4,2048.1,6.06941834]
[1746727209387,4.88185901,2048.4,2048.3,3.284]
[1746727209579,4.93059958,2048.4,2048.3,3.284]
[1746727210157,4.88185901,2048.4,2048.3,3.284]
[1746727210559,4.93051235,2048.5,2048.3,3.284]
[1746727210711,4.88177178,2048.5,2048.3,3.284]
[1746727211058,0.87894057,2048.4,2047.9,18.3588]
[1746727211234,4.8828125,2048.0,2047.9,17.592]
[1746727211437,4.8828125,2048.0,2047.2,0.7668]
[1746727211438,4.88399041,2047.6,2047.2,0.7668]
[1746727211615,4.93202995,2047.8,2047.2,0.7668]
[1746727211816,4.93202995,2047.8,2047.2,3.28]
[1746727211817,4.884482,2047.3,2047.2,3.28]
[1746727212025,4.88392646,2047.6,2047.2,11.44867305]
[1746727212230,23.36670414,2048.4,2047.3,0.7668]
[1746727212231,4.93215569,2047.8,2047.3,0.7668]
[1746727212432,4.88321513,2047.9,2047.6,0.8202]
[1746727212723,4.88316249,2047.9,2047.7,6.564]
[1746727213145,4.93166839,2048.0,2047.7,8.39774862]
[1746727213349,4.8821984,2048.3,2047.8,0.7724]
[1746727213522,4.88247613,2048.2,2047.8,5.65559256]
[1746727213851,4.93122532,2048.2,2047.8,0.7724]
[1746727214022,4.88208451,2048.4,2048.0,0.7672]
[1746727214350,0.824,2048.6,2048.0,0.7672]
[1746727214351,4.8823377,2048.2,2048.0,0.7672]
[1746727214645,4.88178135,2048.5,2048.0,5.64982728]
[1746727214823,4.88187264,2048.4,2048.0,5.64982728]
[1746727215021,4.93052192,2048.5,2048.0,5.64982728]
[1746727215022,4.93052983,2048.5,2048.0,0.7672]
[1746727215325,4.93052983,2048.5,2048.1,0.27097098]
[1746727215647,0.04874057,2048.5,2048.2,6.563]
[1746727215833,4.88138597,2048.6,2048.3,0.7976]
[1746727216034,4.88185901,2048.4,2048.3,0.7976]
[1746727216244,4.88209734,2048.3,2048.2,6.563]
[1746727217811,4.88209734,2048.3,2048.0,3.284]
[1746727217812,4.88275564,2048.1,2048.0,3.284]
[1746727218312,4.88220917,2048.3,2048.0,3.284]
[1746727218622,4.88173889,2048.5,2048.0,8.21550758]
[1746727218838,4.88198964,2048.4,2048.0,8.16668126]
[1746727219048,4.88174644,2048.5,2048.2,0.8017]
[1746727219214,4.88174644,2048.5,2048.2,2.19167685]
[1746727219413,4.88174644,2048.5,2048.2,2.56146485]
[1746727219647,4.88174644,2048.5,2048.2,1.171488]
[1746727219823,4.88170494,2048.5,2048.2,1.171488]
[1746727220225,4.88187878,2048.4,2048.2,1.171488]
[1746727220912,4.93083791,2048.3,2048.2,3.647788]
[1746727221117,4.93083791,2048.3,2048.2,6.930788]
[1746727221520,4.93083791,2048.3,2048.2,0.369788]
[1746727221822,8.96328542,2048.3,2048.2,0.369788]
[1746727222223,14.6639832,2048.3,2048.2,0.369788]
[1746727222553,14.61524263,2048.3,2048.2,0.369788]
[1746727222846,4.88352786,2047.7,2047.6,3.283]
[1746727223047,4.93226843,2047.7,2047.6,3.283]
[1746727223812,0.04874057,2047.7,2047.6,3.283]
[1746727224015,4.88352786,2047.7,2047.6,4.708]
[1746727224212,4.88352786,2047.7,2047.6,4.0519]
[1746727225027,4.93216617,2047.8,2047.6,4.0519]
[1746727225230,4.88277887,2048.1,2047.6,4.0519]
[1746727225447,4.93095137,2048.3,2047.8,5.65209377]
[1746727225722,4.88209429,2048.4,2048.1,0.7665]
[1746727225967,4.8819018,2048.4,2048.2,3.278]
[1746727226265,0.87634057,2048.3,2047.8,6.555]
[1746727226560,4.88291068,2048.0,2047.8,6.555]
[1746727226743,4.88273116,2048.1,2047.8,6.555]
[1746727227065,0.04874057,2048.1,2047.8,3.278]
[1746727227355,4.93141226,2048.1,2047.9,3.277]
[1746727227856,4.8828125,2048.0,2047.9,3.277]
[1746727229622,4.93141226,2048.1,2047.9,3.277]
[1746727229836,4.88200455,2048.4,2048.0,0.7794]
[1746727230036,4.88124266,2048.7,2048.1,0.82822607]
[1746727230272,4.88102555,2048.8,2048.3,4.88189731]
[1746727230483,0.27312773,2048.7,2048.5,0.7794]
[1746727230629,0.3218683,2048.7,2048.5,0.7794]
[1746727230831,0.27312773,2048.7,2048.5,0.7794]
[1746727231130,0.27312773,2048.7,2048.5,1.51772148]
[1746727231330,0.04874057,2048.9,2048.5,1.51772148]
[1746727231662,4.88089922,2048.9,2048.5,6.39925573]
[1746727231870,4.92963979,2048.9,2048.5,6.39925573]
[1746727232031,4.92963979,2048.9,2048.5,1.51772148]
[1746727232367,4.88090698,2048.8,2048.5,1.51772148]
[1746727233362,5.67669255,2049.2,2048.5,0.7794]
[1746727233363,4.8813824,2048.6,2048.5,0.7794]
[1746727233574,4.88180896,2048.5,2048.4,3.276]
[1746727233771,4.88180896,2048.5,2048.4,6.553]
[1746727234065,4.88185901,2048.4,2048.3,3.277]
[1746727234264,4.93059958,2048.4,2048.3,3.277]
[1746727236327,0.04874057,2048.4,2048.3,3.277]
[1746727236658,4.88149014,2048.6,2048.4,0.7551]
[1746727237168,4.88162069,2048.5,2048.4,0.7551]
[1746727237394,4.88149014,2048.6,2048.4,0.7551]
[1746727237972,4.93003107,2048.7,2048.4,0.7551]
[1746727238171,0.04874057,2048.7,2048.4,0.7551]
[1746727238593,4.88104593,2048.8,2048.4,8.61447086]
[1746727238747,4.88135052,2048.7,2048.4,3.73272127]
[1746727239084,0.04874057,2048.9,2048.4,0.7551]
[1746727239085,4.88162069,2048.5,2048.4,0.7551]
[1746727239282,4.88185901,2048.4,2048.3,3.277]
[1746727239589,4.88209734,2048.3,2048.2,18.3606]
[1746727239796,4.88209734,2048.3,2048.2,24.138]
[1746727241391,4.88209734,2048.3,2048.2,20.863]
[1746727245194,4.8819977,2048.4,2048.2,20.863]
[1746727245364,4.93083791,2048.3,2048.2,20.863]
[1746727246192,4.88209734,2048.3,2048.2,20.863]
[1746727251214,4.88209734,2048.3,2048.2,17.586]
[1746727251417,4.8823357,2048.2,2048.1,3.277]
[1746727251632,4.88257409,2048.1,2047.9,3.277]
[1746727251813,4.93155307,2048.0,2047.9,3.277]
[1746727252931,0.7722,2049.0,2047.9,15.31834781]
[1746727253224,4.88090589,2048.8,2048.3,0.7724]
[1746727253544,4.88185901,2048.4,2048.3,0.7724]
[1746727253733,4.88236054,2048.2,2048.1,0.7649]
[1746727253903,4.88236054,2048.2,2048.1,7.3149]
[1746727254100,4.93110111,2048.2,2048.1,0.7649]
[1746727254300,4.88264156,2048.1,2047.8,0.7649]
[1746727254497,4.88264156,2048.1,2047.9,6.546]
[1746727254698,4.93110111,2048.2,2047.9,6.546]
[1746727255461,9.81363884,2048.2,2047.9,6.546]
[1746727255615,4.88265525,2048.1,2047.9,6.546]
[1746727255815,0.04874057,2048.2,2047.9,6.546]
[1746727256264,0.7889,2048.9,2048.1,0.7599]
[1746727256461,0.04874057,2048.8,2048.4,0.7599]
[1746727256611,0.27329467,2048.8,2048.5,6.59381151]
[1746727256935,0.27329467,2048.8,2048.7,5.64104414]
[1746727257114,4.87996946,2049.2,2048.7,10.84040985]
[1746727257313,4.87996946,2049.2,2048.8,4.8808099]
[1746727257914,4.8799628,2049.2,2048.8,4.8808099]
[1746727258231,5.66810553,2049.6,2048.9,0.7599]
[1746727258232,4.88042947,2049.0,2048.9,0.7599]
[1746727258425,4.92898857,2049.1,2048.9,4.0329]
[1746727258426,4.88027892,2049.1,2048.9,4.0329]
[1746727258632,4.88013289,2049.2,2049.0,3.272]
[1746727259317,0.04874057,2049.4,2049.0,3.272]
[1746727259514,4.87942003,2049.5,2049.0,8.20109079]
[1746727259752,5.6765485,2049.8,2049.1,2.22652728]
[1746727259953,4.87946527,2049.5,2049.1,2.22652728]
[1746727260150,4.8792842,2049.5,2049.2,0.7831]
[1746727260428,4.87900078,2049.6,2049.2,0.7831]
[1746727260653,4.87927258,2049.5,2049.2,0.7831]
[1746727260954,4.87950171,2049.4,2049.2,0.7831]
[1746727261151,4.8791197,2049.6,2049.2,6.77918907]
[1746727261358,4.87923994,2049.5,2049.2,1.89929384]
[1746727261739,4.87971502,2049.3,2049.2,1.89929384]
[1746727261924,4.87960857,2049.4,2049.2,7.3261]
[1746727262251,4.87937964,2049.5,2049.2,7.3261]
[1746727262553,4.92763023,2049.7,2049.2,7.3261]
[1746727262853,4.87914331,2049.6,2049.2,7.3261]
[1746727263041,9.75837921,2049.6,2049.2,7.3261]
[1746727263243,4.87927762,2049.5,2049.3,0.62882212]
[1746727263563,4.87927762,2049.5,2049.2,7.3261]
[1746727263564,4.87971502,2049.3,2049.2,0.7831]
[1746727263750,4.87995315,2049.2,2049.1,6.06941834]
[1746727264058,4.87962548,2049.4,2049.2,6.543]
[1746727264418,4.879382,2049.5,2049.2,6.543]
[1746727264759,4.87962398,2049.4,2049.2,6.543]
[1746727265057,4.87995315,2049.2,2049.1,6.06941834]
[1746727265259,4.9280542,2049.5,2049.1,12.61141834]
[1746727265553,0.04874057,2049.5,2049.1,13.94995017]
[1746727265760,4.87972543,2049.3,2049.1,13.94995017]
[1746727266362,4.87937204,2049.5,2049.1,13.94995017]
[1746727266766,4.87937204,2049.5,2049.1,18.83006745]
[1746727266930,0.04874057,2049.7,2049.2,0.04879463]
[1746727267126,4.87920426,2049.6,2049.2,0.04879463]
[1746727267340,4.90221215,2050.0,2049.3,10.80011848]
[1746727267567,4.8786683,2049.8,2049.3,0.7698]
[1746727267734,4.87892208,2049.7,2049.4,6.541]
[1746727268257,4.87937295,2049.5,2049.3,0.7698]
[1746727268470,4.87891495,2049.7,2049.5,6.54]
[1746727268769,4.87900078,2049.6,2049.5,6.54]
[1746727268933,0.78085779,2050.0,2049.7,0.7822]
[1746727268934,0.02405779,2050.0,2049.7,0.7822]
[1746727269274,0.02405779,2050.0,2049.9,5.66788674]
[1746727269624,0.02405779,2050.0,2049.9,0.7896]
[1746727270030,0.02405779,2050.0,2049.9,5.66788674]
[1746727270539,0.02405779,2050.0,2049.9,5.71666416]
[1746727270739,0.02405779,2050.0,2049.9,7.29125139]
[1746727271228,0.02405779,2050.0,2049.9,3.271]
[1746727271426,4.8787302,2049.8,2049.6,17.578]
[1746727271650,4.87876274,2049.7,2049.6,17.578]
[1746727271850,4.92741311,2049.8,2049.7,6.539]
[1746727272054,4.92741311,2049.8,2049.5,0.7749]
[1746727272055,4.87890411,2049.7,2049.5,0.7749]
[1746727272251,4.87890411,2049.7,2049.6,6.539]
[1746727272533,4.92741925,2049.8,2049.6,6.539]
[1746727272750,4.87867868,2049.8,2049.6,6.539]
[1746727273268,4.87900078,2049.6,2049.5,3.268]
[1746727273471,4.87971502,2049.3,2049.1,17.575]
[1746727273770,4.87971502,2049.3,2049.2,3.271]
[1746727275584,4.87955851,2049.4,2049.2,3.271]
[1746727275730,4.92829908,2049.4,2049.2,3.271]
[1746727275930,4.87971502,2049.3,2049.2,3.271]
[1746727277278,4.87995315,2049.2,2049.1,17.575]
[1746727277431,4.88042947,2049.0,2048.9,3.271]
[1746727277632,7.92917004,2049.0,2048.9,3.271]
[1746727280234,4.92917004,2049.0,2048.9,3.271]
[1746727281049,4.88162069,2048.5,2048.4,0.7913]
[1746727281247,4.93036126,2048.5,2048.4,3.271]
[1746727281774,4.88066453,2049.0,2048.4,3.271]
[1746727281964,4.88070189,2048.9,2048.4,3.271]
[1746727283268,0.04874057,2048.8,2048.4,3.271]
[1746727283450,4.88042947,2049.0,2048.4,9.81471274]
[1746727284072,0.04874057,2049.0,2048.6,0.7759]
[1746727284241,0.04874057,2049.0,2048.7,3.267]
[1746727284898,4.88080601,2048.9,2048.7,3.267]
[1746727285059,0.04874057,2048.8,2048.7,3.267]
[1746727285372,0.04874057,2049.0,2048.7,3.267]
[1746727285567,4.92922067,2049.0,2048.7,3.267]
[1746727285864,4.88108302,2048.8,2048.3,0.7799]
[1746727286066,0.04874057,2048.7,2048.6,3.268]
[1746727286267,0.04874057,2048.8,2048.6,3.268]
[1746727286635,0.04874057,2048.8,2048.3,0.7799]
[1746727286844,5.64742233,2048.7,2048.4,3.268]
[1746727287140,0.04874057,2048.6,2048.4,3.268]
[1746727287336,4.93013851,2048.6,2048.4,3.268]
[1746727287537,4.88171984,2048.5,2048.3,3.268]
[1746727287738,4.93061102,2048.4,2048.3,3.268]
[1746727287939,4.88222389,2048.3,2047.8,0.8071]
[1746727288135,4.88222389,2048.3,2047.7,20.845]
[1746727288136,4.88293516,2048.0,2047.7,20.845]
[1746727288339,4.93195078,2047.9,2047.7,20.845]
[1746727288565,4.93195078,2047.9,2047.4,0.8087]
[1746727288566,4.88328938,2047.8,2047.4,0.8087]
[1746727288753,4.93237631,2047.7,2047.5,3.268]
[1746727289139,0.04874057,2047.7,2047.5,3.268]
[1746727289335,4.93230373,2047.7,2047.5,3.268]
[1746727290083,0.04874057,2047.7,2047.5,3.268]
[1746727290269,4.93212058,2047.8,2047.5,3.268]
[1746727291576,0.04874057,2047.8,2047.5,3.268]
[1746727292265,4.93204585,2047.8,2047.5,3.268]
[1746727292680,0.04874057,2047.8,2047.5,3.268]
[1746727292866,4.93204898,2047.8,2047.5,3.268]
[1746727293280,0.04874057,2047.8,2047.5,3.268]
[1746727293890,4.93215116,2047.8,2047.5,3.268]
[1746727294255,3.0,2047.7,2047.5,3.268]
[1746727294498,4.93250693,2047.6,2047.5,3.268]
[1746727295001,4.88427855,2047.4,2047.3,3.269]
[1746727295201,4.88480214,2047.2,2047.0,3.269]
[1746727295499,0.04874057,2047.1,2047.0,3.269]
[1746727295699,0.04874057,2047.2,2047.0,3.269]
[1746727297182,4.9333529,2047.3,2047.0,3.269]
[1746727297709,4.88495921,2047.1,2047.0,3.269]
[1746727297851,4.88506683,2047.1,2046.9,20.848]
[1746727298056,0.04874057,2047.0,2046.9,20.848]
[1746727298286,0.775,2047.4,2046.9,20.848]
[1746727298287,5.65943291,2047.4,2046.9,20.848]
[1746727298589,4.93333034,2047.3,2046.9,20.848]
[1746727299090,4.93338757,2047.3,2046.9,20.848]
[1746727299279,0.04874057,2047.3,2046.9,20.848]
[1746727299481,4.93332251,2047.3,2046.9,20.848]
[1746727300064,4.93332251,2047.3,2046.9,25.7334346]
[1746727300264,0.04874057,2047.3,2046.9,25.7334346]
[1746727300590,5.67753632,2048.0,2047.2,5.15069778]
[1746727300897,4.88324828,2047.9,2047.5,0.7832]
[1746727301050,4.8836474,2047.7,2047.6,3.27]
[1746727303301,4.93207493,2047.8,2047.6,3.27]
[1746727304599,0.04874057,2047.8,2047.6,3.27]
[1746727304803,4.88229975,2048.3,2047.8,4.88317239]
[1746727305094,4.88229975,2048.3,2047.9,8.15003794]
[1746727305309,4.93108654,2048.2,2047.9,3.267]
[1746727305796,0.04874057,2048.3,2047.9,9.53004607]
[1746727305997,4.93085612,2048.3,2047.9,9.53004607]
[1746727306890,4.88270495,2048.1,2047.9,4.64708169]
[1746727307088,4.93144552,2048.1,2047.9,3.267]
[1746727307418,4.88250553,2048.2,2048.0,6.535]
[1746727307586,0.04874057,2048.2,2048.0,6.535]
[1746727308084,4.88202813,2048.4,2048.0,6.535]
[1746727308401,4.93091373,2048.3,2048.0,6.535]
[1746727308604,5.64864095,2048.6,2048.0,12.29135791]
[1746727308806,4.88099923,2048.8,2048.3,4.88191038]
[1746727309008,9.76250017,2048.7,2048.1,5.7533837]
[1746727309197,4.88114789,2048.7,2048.2,9.76433006]
[1746727309397,0.813,2049.4,2048.4,0.8221]
[1746727309595,4.8802553,2049.1,2048.7,4.88104533]
[1746727309800,0.04874057,2049.0,2048.8,6.535]
[1746727310006,4.92925846,2049.0,2048.4,6.34595707]
[1746727310320,0.813,2049.4,2048.5,6.5838103]
[1746727310321,4.88016022,2049.2,2048.5,6.5838103]
[1746727310490,4.92890079,2049.2,2048.8,4.88087345]
[1746727310678,4.88016022,2049.2,2048.8,4.88087345]
[1746727310880,4.92895196,2049.1,2048.7,4.88104498]
[1746727311080,4.92895196,2049.1,2048.6,5.68551417]
[1746727311279,4.92895196,2049.1,2048.6,3.06689618]
[1746727311280,0.04874057,2049.1,2048.6,3.06689618]
[1746727311501,4.88028212,2049.1,2048.6,3.06689618]
[1746727311703,4.88044562,2049.0,2048.6,7.94811953]
[1746727311982,4.87999671,2049.2,2048.8,4.88087472]
[1746727312180,4.92900717,2049.1,2048.6,3.01808981]
[1746727312419,4.88043705,2049.0,2048.6,7.94811223]
[1746727312576,4.92906403,2049.1,2048.6,7.94811223]
[1746727312777,4.88051648,2049.0,2048.7,6.534]
[1746727313014,4.88042947,2049.0,2048.7,6.534]
[1746727313785,4.92908778,2049.1,2048.7,6.534]
[1746727313983,4.8805192,2049.0,2048.7,6.534]
[1746727314717,4.9290767,2049.1,2048.7,6.534]
[1746727314930,4.9290767,2049.1,2048.7,12.85845457]
[1746727315123,4.9290767,2049.1,2048.7,7.97735995]
[1746727315282,4.88061072,2049.0,2048.7,6.534]
[1746727317419,0.04874057,2049.1,2048.7,6.534]
[1746727317615,4.88005609,2049.2,2048.8,4.88073084]
[1746727317811,4.87934768,2049.5,2049.0,0.8264]
[1746727318150,0.04874057,2049.6,2049.1,0.04880075]
[1746727318309,4.92764744,2049.7,2049.3,0.8264]
[1746727318904,4.92764744,2049.7,2049.3,5.70609876]
[1746727319543,9.80662753,2049.7,2049.3,0.8264]
[1746727319741,9.80662753,2049.7,2049.2,11.40782094]
[1746727319742,4.92764744,2049.7,2049.2,11.40782094]
[1746727319939,4.87962095,2049.4,2049.3,6.527]
[1746727320125,4.87947692,2049.4,2049.3,6.527]
[1746727320445,4.87937038,2049.5,2049.3,6.527]
[1746727320645,4.87947692,2049.4,2049.3,6.527]
[1746727320945,4.88029615,2049.1,2048.9,3.7856]
[1746727321129,4.87989965,2049.3,2049.0,6.527]
[1746727321445,0.81514057,2049.4,2049.0,6.527]
[1746727321610,4.87984019,2049.3,2049.0,6.527]
[1746727321944,4.87997424,2049.2,2049.0,6.527]
[1746727322807,0.04874057,2049.3,2049.1,3.264]
[1746727323148,5.64211502,2049.3,2049.1,3.264]
[1746727323443,4.92869372,2049.2,2049.1,3.264]
[1746727324515,4.87995315,2049.2,2049.1,3.264]
[1746727326137,4.87923883,2049.5,2049.1,4.7018]
[1746727326450,4.87975513,2049.3,2049.1,4.0492]
[1746727326854,4.88036985,2049.1,2048.8,0.8057]
[1746727327018,4.92860011,2049.3,2048.9,6.526]
[1746727327219,4.87934259,2049.5,2049.1,5.68573102]
[1746727327551,4.87934259,2049.5,2049.2,1.06149423]
[1746727327755,4.87971502,2049.3,2049.2,1.06149423]
[1746727328051,4.92823143,2049.4,2049.2,6.525]
[1746727328260,4.87971502,2049.3,2049.2,6.525]
[1746727328427,4.87971502,2049.3,2049.1,0.8057]
[1746727328754,4.87953641,2049.4,2049.2,6.524]
[1746727329344,0.04874057,2049.5,2049.2,6.524]
[1746727329526,4.87971502,2049.3,2049.2,6.524]
[1746727330443,0.04874057,2049.4,2049.2,6.524]
[1746727330620,4.92817376,2049.5,2049.2,6.524]
[1746727330827,0.04874057,2049.5,2049.2,6.524]
[1746727331127,4.87971502,2049.3,2049.2,6.524]
[1746727331357,4.88021361,2049.1,2048.9,0.7564]
[1746727331531,4.88077716,2048.9,2048.7,6.82581834]
[1746727331874,4.88077716,2048.9,2048.8,6.524]
[1746727332328,4.9292582,2049.0,2048.8,6.524]
[1746727332524,0.04874057,2049.0,2048.8,6.524]
[1746727332772,4.92924727,2049.0,2048.8,6.524]
[1746727333539,0.04874057,2049.0,2048.8,6.524]
[1746727333729,4.88048756,2049.0,2048.8,8.22826353]
[1746727334170,4.88066767,2048.9,2048.8,6.524]
[1746727334323,4.88053357,2049.0,2048.8,6.524]
[1746727334527,0.04874057,2049.1,2048.8,6.524]
[1746727334842,4.9287198,2049.2,2048.8,6.524]
[1746727335039,0.04874057,2049.2,2048.8,11.40479848]
[1746727335253,0.04874057,2049.2,2048.8,13.10902055]
[1746727335459,5.70915553,2049.6,2049.0,5.66577968]
[1746727335659,0.45467886,2049.5,2049.2,4.87985869]
[1746727335989,4.92784853,2049.6,2049.3,6.523]
[1746727336575,0.04874057,2049.6,2049.3,6.523]
[1746727336865,4.87911996,2049.6,2049.3,6.523]
[1746727337050,4.92798004,2049.5,2049.3,6.523]
[1746727337627,0.04874057,2049.5,2049.3,6.523]
[1746727338064,4.92759949,2049.7,2049.3,11.40269299]
[1746727338237,7.92759949,2049.7,2049.3,12.20346621]
[1746727338441,0.27324134,2049.6,2049.3,7.32377322]
[1746727338640,0.27324134,2049.6,2049.4,0.825]
[1746727339049,4.87901265,2049.6,2049.4,0.825]
[1746727339254,7.92765807,2049.7,2049.4,0.825]
[1746727339455,4.87908171,2049.6,2049.4,0.825]
[1746727339875,4.92782228,2049.6,2049.4,0.825]
[1746727341676,4.87923883,2049.5,2049.4,0.825]
[1746727341886,4.87923883,2049.5,2049.3,6.523]
[1746727342176,0.04874057,2049.4,2049.2,0.83]
[1746727342343,0.04874057,2049.4,2049.3,6.522]
[1746727342679,4.92783726,2049.6,2049.3,6.522]
[1746727343873,4.87940236,2049.5,2049.3,6.522]
[1746727344597,4.87909669,2049.6,2049.3,6.522]
[1746727344743,7.87887217,2049.7,2049.3,6.522]
[1746727344943,4.87908659,2049.6,2049.3,8.29518005]
[1746727345649,9.80744997,2049.5,2049.3,8.29518005]
[1746727345980,4.92800767,2049.5,2049.4,6.516]
[1746727346470,5.20137889,2049.5,2049.4,6.516]
[1746727346667,0.32214006,2049.5,2049.4,6.516]
[1746727346980,5.20137889,2049.5,2049.4,6.516]
[1746727347177,5.20137889,2049.5,2048.9,10.94993462]
[1746727347178,4.87971502,2049.3,2048.9,6.06941834]
[1746727347496,4.92834434,2049.4,2049.0,6.516]
[1746727347786,4.92834434,2049.4,2049.1,0.7525]
[1746727347965,4.87972842,2049.3,2049.0,6.516]
[1746727348279,4.92890002,2049.2,2049.1,3.258]
[1746727348883,5.20250105,2049.2,2049.1,3.258]
[1746727349084,0.27360103,2049.2,2049.1,3.258]
[1746727349580,4.87995315,2049.2,2049.1,3.258]
[1746727349788,5.33604837,2049.2,2049.1,3.258]
[1746727350083,6.13914837,2049.2,2049.1,6.516]
[1746727350285,6.18788894,2049.2,2049.1,6.516]
[1746727350462,1.30793579,2049.2,2049.0,3.258]
[1746727350657,1.30793579,2049.2,2048.3,3.0]
[1746727350658,4.88066767,2048.9,2048.6,3.258]
[1746727350881,0.8121,2049.0,2048.6,6.516]
[1746727350882,4.88114414,2048.7,2048.6,6.516]
[1746727351184,0.45609522,2048.7,2048.3,0.8332]
[1746727351359,4.88151239,2048.6,2048.4,6.517]
[1746727351555,4.88151239,2048.6,2048.4,3.259]
[1746727351556,0.80164057,2048.6,2048.4,3.259]
[1746727351758,4.88162069,2048.5,2048.4,3.259]
[1746727352278,4.88206436,2048.4,2048.2,3.258]
[1746727352476,4.93059958,2048.4,2048.3,3.259]
[1746727353087,0.04874057,2048.5,2048.3,3.259]
[1746727353253,4.93049744,2048.5,2048.3,3.259]
[1746727354599,4.88185901,2048.4,2048.3,3.259]
[1746727355310,4.88236534,2048.2,2048.0,17.59]
[1746727355469,4.88236534,2048.2,2048.1,3.259]
[1746727355676,4.93110591,2048.2,2048.1,3.259]
[1746727356608,0.04874057,2048.2,2048.1,3.259]
[1746727356811,4.8822523,2048.3,2048.1,3.259]
[1746727357114,4.93099287,2048.3,2048.1,3.259]
[1746727357808,9.81330147,2048.3,2048.1,3.259]
[1746727357988,4.93099287,2048.3,2048.1,3.259]
[1746727358389,4.93107627,2048.2,2048.1,3.259]
[1746727358687,0.04874057,2048.2,2048.1,3.259]
[1746727358888,0.04874057,2048.3,2048.1,3.259]
[1746727360216,4.93093807,2048.3,2048.0,17.59]
[1746727360380,0.04874057,2048.3,2048.1,3.259]
[1746727361611,0.04874057,2048.4,2048.1,3.259]
[1746727362325,4.88211182,2048.3,2048.1,3.259]
[1746727362492,0.04874057,2048.2,2048.1,3.259]
[1746727362685,0.04874057,2048.3,2048.1,3.259]
[1746727364726,4.88210239,2048.3,2048.1,3.259]
[1746727364894,0.04874057,2048.2,2048.1,3.259]
[1746727365105,0.04874057,2048.3,2048.1,3.259]
[1746727365285,4.93084411,2048.3,2048.1,3.259]
[1746727365689,0.04874057,2048.3,2048.1,3.259]
[1746727365890,0.83324057,2048.3,2047.6,6.89871834]
[1746727366127,0.83324057,2048.3,2046.9,3.0]
[1746727366128,0.7845,2047.7,2047.2,6.89871834]
[1746727366300,4.88403469,2047.5,2047.3,3.26]
[1746727366926,4.884482,2047.3,2047.1,3.26]
[1746727367227,0.04874057,2047.2,2047.1,3.26]
[1746727367989,0.83324057,2047.3,2047.1,3.26]
[1746727368188,5.71777642,2047.3,2047.1,3.26]
[1746727368697,0.83324057,2047.3,2047.1,3.26]
[1746727369031,5.71773559,2047.3,2047.1,3.26]
[1746727369430,0.55,2047.2,2046.9,3.26]
[1746727369633,4.88519785,2047.0,2046.9,3.26]
[1746727369816,0.7845,2047.3,2046.9,3.26]
[1746727370035,4.88506131,2047.1,2046.9,3.26]
[1746727370215,4.93393842,2047.0,2046.9,3.26]
[1746727371220,0.04874057,2047.0,2046.9,3.26]
[1746727371409,4.93360949,2047.2,2046.9,3.26]
[1746727372199,0.04874057,2047.2,2046.9,5.20891512]
[1746727372394,0.04874057,2047.3,2046.9,10.0943028]
[1746727372712,4.88410235,2047.5,2047.0,4.88500901]
[1746727372894,0.04874057,2047.4,2047.1,5.65555363]
[1746727373100,4.88389445,2047.6,2047.2,8.14068403]
[1746727373603,4.8836224,2047.7,2047.2,9.63592846]
[1746727373922,0.04874057,2047.7,2047.2,9.58708285]
[1746727374119,4.93241383,2047.7,2047.2,9.58708285]
[1746727374301,4.88376769,2047.6,2047.2,9.58708285]